fUSD/lending_fUSD_20250407
["ID","MTS","AMOUNT","RATE_DAILY","PERIOD"]
[357406063,1744048246837,-500.0,0.00044006,30]
[357406065,1744048246846,-500.0,0.00044006,30]
[357406067,1744048246856,-500.0,0.00044006,30]
[357406069,1744048246866,-500.0,0.00044006,30]
[357406070,1744048246875,-1394.86,0.00044006,30]
[357406073,1744048246884,-2140.84,0.00044006,30]
[357406074,1744048246893,-4593.17,0.00044006,30]
[357406075,1744048246903,-1658.6,0.00044006,30]
[357406076,1744048246912,-770.94,0.00044006,30]
[357406077,1744048246921,-1000.0,0.00044006,30]
[357406078,1744048246930,-500.0,0.00044006,30]
[357406079,1744048246938,-500.0,0.00044006,30]
[357406080,1744048246947,-500.0,0.00044006,30]
[357406081,1744048246956,-500.0,0.00044006,30]
[357406082,1744048246965,-500.0,0.00044006,30]
[357406083,1744048246974,-610.3522,0.00044007,10]
[357406084,1744048246984,-150.0,0.00044008,2]
[357406085,1744048246993,-150.0,0.00044066,2]
[357406086,1744048247002,-150.0,0.00044068,2]
[357406087,1744048247011,-9246.32203264,0.00044079,3]
[357406088,1744048247021,-9246.32203264,0.0004408,3]
[357406089,1744048247030,-9246.32203264,0.00044086,3]
[357406090,1744048247039,-500.0,0.00044089,30]
[357406092,1744048247050,-204.33862661,0.00044089,7]
[357406094,1744048247059,-36231.24,0.0004409,18]
[357406096,1744048247068,-500.0,0.00044096,30]
[357406098,1744048247077,-500.0,0.00044096,30]
[357406100,1744048247087,-500.0,0.00044096,30]
[357406102,1744048247096,-500.0,0.00044097,30]
[357406104,1744048247106,-467.61085737,0.00044097,30]
[357406105,1744048247115,-36985.2881306,0.00044097,3]
[357406107,1744048247124,-36756.8869024,0.00044097,3]
[357406109,1744048247134,-64724.2542285,0.00044098,3]
[357406111,1744048247143,-61261.4781707,0.00044098,3]
[357406113,1744048247152,-500.0,0.00044098,30]
[357406116,1744048247165,-2496.67,0.00044098,30]
[357406119,1744048247185,-18492.6440653,0.00044099,3]
[357406122,1744048247204,-147027.54761,0.00044099,3]
[357406125,1744048247221,-8562.38698715,0.000441,15]
[357406128,1744048247240,-500.0,0.00044106,30]
[357406130,1744048247255,-500.0,0.00044106,30]
[357406133,1744048247274,-500.0,0.00044106,30]
[357406137,1744048247294,-500.0,0.00044107,30]
[357406140,1744048247314,-555.77382631,0.00044107,30]
[357406142,1744048247332,-321.0,0.00044107,2]
[357406145,1744048247350,-151.0,0.00044107,14]
[357406148,1744048247366,-500.0,0.00044107,16]
[357406151,1744048247381,-151.0,0.00044107,30]
[357406154,1744048247400,-541.79093041,0.00044107,30]
[357406156,1744048247412,-500.0,0.00044107,30]
[357406159,1744048247431,-500.0,0.00044107,30]
[357406161,1744048247444,-500.0,0.00044107,30]
[357406164,1744048247459,-500.0,0.00044107,5]
[357406167,1744048247475,-500.0,0.00044107,30]
[357406169,1744048247489,-497.4267599,0.00044107,30]
[357406172,1744048247504,-317.26044995,0.00044107,30]
[357406174,1744048247519,-500.0,0.00044107,30]
[357406177,1744048247534,-300.10673275,0.00044107,30]
[357406180,1744048247548,-1368.794186,0.00044107,14]
[357406182,1744048247566,-1368.794186,0.00044107,14]
[357406185,1744048247582,-424.22630115,0.00044107,30]
[357406188,1744048247601,-500.0,0.00044107,30]
[357406190,1744048247616,-537.072431,0.00044107,30]
[357406193,1744048247632,-549.90740687,0.00044107,30]
[357406196,1744048247648,-500.0,0.00044107,30]
[357406198,1744048247663,-500.0,0.00044107,30]
[357406201,1744048247678,-500.0,0.00044107,30]
[357406203,1744048247693,-500.0,0.00044107,30]
[357406206,1744048247711,-500.0,0.00044107,30]
[357406209,1744048247727,-500.0,0.00044107,30]
[357406211,1744048247742,-500.0,0.00044107,30]
[357406214,1744048247758,-500.0,0.00044107,30]
[357406216,1744048247772,-500.0,0.00044107,30]
[357406219,1744048247787,-500.0,0.00044107,30]
[357406221,1744048247802,-563.3,0.00044107,30]
[357406224,1744048247817,-500.0,0.00044107,30]
[357406226,1744048247832,-500.0,0.00044107,30]
[357406229,1744048247847,-626.95,0.00044107,30]
[357406232,1744048247863,-500.0,0.00044107,30]
[357406235,1744048247879,-575.29,0.00044107,30]
[357406237,1744048247893,-500.0,0.00044107,30]
[357406240,1744048247908,-500.0,0.00044107,30]
[357406242,1744048247923,-500.0,0.00044107,30]
[357406245,1744048247937,-500.0,0.00044107,30]
[357406247,1744048247952,-500.0,0.00044107,30]
[357406250,1744048247967,-500.0,0.00044107,30]
[357406252,1744048247982,-500.0,0.00044107,30]
[357406255,1744048247996,-500.0,0.00044107,30]
[357406258,1744048248011,-1000.0,0.00044107,30]
[357406260,1744048248026,-812.57,0.00044107,30]
[357406263,1744048248042,-500.0,0.00044107,30]
[357406266,1744048248060,-987.84,0.00044107,30]
[357406268,1744048248075,-868.95,0.00044107,30]
[357406271,1744048248091,-757.43,0.00044107,30]
[357406273,1744048248107,-771.08,0.00044107,30]
[357406276,1744048248123,-2500.07,0.00044107,30]
[357406279,1744048248139,-500.0,0.00044107,30]
[357406281,1744048248155,-500.0,0.00044107,30]
[357406284,1744048248172,-500.0,0.00044107,30]
[357406287,1744048248190,-500.0,0.00044107,30]
[357406289,1744048248206,-525.01,0.00044107,30]
[357406292,1744048248223,-912.09,0.00044107,30]
[357406295,1744048248239,-704.26,0.00044107,30]
[357406297,1744048248254,-1082.84,0.00044107,30]
[357406300,1744048248269,-932.45,0.00044107,30]
[357406303,1744048248285,-500.0,0.00044107,30]
[357406305,1744048248303,-500.0,0.00044107,30]
[357406308,1744048248319,-583.42,0.00044107,30]
[357406311,1744048248334,-500.2654395,0.00044107,30]
[357406313,1744048248350,-500.0,0.00044107,30]
[357406316,1744048248365,-500.0,0.00044107,30]
[357406318,1744048248380,-558.63,0.00044107,30]
[357406321,1744048248395,-1443.41,0.00044107,30]
[357406324,1744048248412,-521.28,0.00044107,30]
[357406326,1744048248427,-577.05,0.00044107,30]
[357406329,1744048248443,-500.0,0.00044107,30]
[357406332,1744048248459,-500.0,0.00044107,30]
[357406334,1744048248474,-500.0,0.00044107,30]
[357406337,1744048248489,-500.0,0.00044107,30]
[357406339,1744048248504,-600.0,0.00044107,120]
[357406342,1744048248519,-600.0,0.00044107,120]
[357406345,1744048248535,-600.0,0.00044107,120]
[357406347,1744048248551,-600.0,0.00044107,120]
[357406350,1744048248567,-600.0,0.00044107,120]
[357406353,1744048248582,-525.53,0.00044107,30]
[357406355,1744048248597,-150.0,0.00044107,120]
[357406358,1744048248613,-500.0,0.00044107,30]
[357406360,1744048248628,-756.22,0.00044107,30]
[357406363,1744048248643,-523.0,0.00044107,30]
[357406365,1744048248652,-500.0,0.00044107,30]
[357406367,1744048248662,-500.0,0.00044107,30]
[357406369,1744048248671,-507.99,0.00044107,30]
[357406371,1744048248681,-715.35,0.00044107,30]
[357406373,1744048248692,-2101.49,0.00044107,30]
[357406375,1744048248704,-502.17,0.00044107,30]
[357406377,1744048248715,-500.0,0.00044107,30]
[357406379,1744048248724,-500.0,0.00044107,30]
[357406381,1744048248734,-500.0,0.00044107,30]
[357406383,1744048248744,-1162.9,0.00044107,30]
[357406419,1744048249073,-862.01,0.00044107,30]
[357406424,1744048249109,-511.57,0.00044107,30]
[357406426,1744048249120,-1401.26,0.00044107,30]
[357406428,1744048249130,-500.0,0.00044107,30]
[357406430,1744048249139,-534.81,0.00044107,30]
[357406432,1744048249149,-663.99,0.00044107,30]
[357406434,1744048249157,-844.07,0.00044107,30]
[357406436,1744048249167,-1001.04,0.00044107,30]
[357406438,1744048249177,-500.0,0.00044107,30]
[357406440,1744048249186,-151.0,0.00044108,14]
[357406442,1744048249195,-151.0,0.00044108,14]
[357406444,1744048249205,-151.0,0.00044108,14]
[357406446,1744048249214,-1368.794186,0.00044108,14]
[357406448,1744048249224,-1368.794186,0.00044108,14]
[357406450,1744048249233,-1368.794186,0.00044108,14]
[357406452,1744048249243,-1368.794186,0.00044108,14]
[357406454,1744048249253,-177.031072,0.00044108,14]
[357406456,1744048249262,-177.031072,0.00044108,14]
[357406458,1744048249271,-500.0,0.00044108,30]
[357406460,1744048249281,-500.0,0.00044108,30]
[357406462,1744048249291,-513.47,0.00044108,30]
[357406464,1744048249302,-284.16593631,0.00044108,30]
[357406466,1744048249311,-467.44,0.00044108,30]
[357406468,1744048249320,-1118.76,0.00044108,30]
[357406469,1744048249330,-500.0,0.00044108,30]
[357406471,1744048249340,-995.88,0.00044108,30]
[357406473,1744048249350,-500.0,0.00044108,30]
[357406475,1744048249360,-500.0,0.00044108,30]
[357406477,1744048249369,-500.0,0.00044108,30]
[357406479,1744048249379,-500.0,0.00044108,30]
[357406481,1744048249389,-500.0,0.00044108,30]
[357406483,1744048249399,-500.0,0.00044108,30]
[357406485,1744048249408,-500.0,0.00044108,30]
[357406487,1744048249418,-522.64463144,0.00044108,30]
[357406489,1744048249427,-500.0,0.00044108,30]
[357406491,1744048249437,-500.0,0.00044108,30]
[357406493,1744048249447,-500.0,0.00044108,30]
[357406495,1744048249457,-500.0,0.00044108,30]
[357406497,1744048249467,-500.0,0.00044108,30]
[357406499,1744048249476,-828.36,0.00044108,30]
[357406501,1744048249486,-693.28,0.00044108,30]
[357406503,1744048249497,-500.0,0.00044108,30]
[357406505,1744048249506,-500.0,0.00044108,30]
[357406507,1744048249515,-675.6,0.00044108,30]
[357406509,1744048249524,-500.0,0.00044108,30]
[357406511,1744048249534,-500.0,0.00044108,30]
[357406513,1744048249543,-500.0,0.00044108,30]
[357406515,1744048249556,-507.59,0.00044108,30]
[357406517,1744048249565,-500.0,0.00044108,30]
[357406519,1744048249574,-500.0,0.00044108,30]
[357406521,1744048249586,-500.0,0.00044108,30]
[357406523,1744048249595,-500.0,0.00044108,30]
[357406525,1744048249605,-500.0,0.00044108,30]
[357406527,1744048249615,-500.0,0.00044108,30]
[357406529,1744048249624,-500.0,0.00044108,30]
[357406531,1744048249633,-529.73986058,0.00044108,30]
[357406533,1744048249643,-500.0,0.00044108,30]
[357406535,1744048249653,-500.0,0.00044108,30]
[357406537,1744048249663,-539.89526993,0.00044108,30]
[357406539,1744048249672,-866.84,0.00044108,30]
[357406541,1744048249681,-500.0,0.00044108,30]
[357406543,1744048249691,-731.17,0.00044108,30]
[357406545,1744048249702,-500.0,0.00044108,30]
[357406547,1744048249713,-500.0,0.00044108,30]
[357406549,1744048249723,-596.85,0.00044108,30]
[357406551,1744048249732,-534.49430502,0.00044108,30]
[357406553,1744048249741,-551.54554058,0.00044108,30]
[357406555,1744048249752,-500.0,0.00044108,30]
[357406557,1744048249762,-500.0,0.00044108,30]
[357406559,1744048249771,-500.0,0.00044108,30]
[357406561,1744048249781,-500.0,0.00044108,30]
[357406563,1744048249790,-517.12385976,0.00044108,30]
[357406565,1744048249800,-664.56,0.00044108,30]
[357406567,1744048249810,-500.0,0.00044108,30]
[357406569,1744048249819,-500.0,0.00044108,30]
[357406571,1744048249828,-500.0,0.00044108,30]
[357406573,1744048249837,-500.0,0.00044108,30]
[357406575,1744048249847,-1047.73,0.00044108,30]
[357406577,1744048249855,-500.0,0.00044108,30]
[357406579,1744048249865,-576.49208745,0.00044108,30]
[357406581,1744048249874,-500.0,0.00044108,30]
[357406583,1744048249884,-500.0,0.00044108,30]
[357406585,1744048249892,-500.0,0.00044108,30]
[357406587,1744048249903,-897.81,0.00044108,30]
[357406589,1744048249913,-500.0,0.00044108,30]
[357406591,1744048249923,-500.0,0.00044108,30]
[357406593,1744048249931,-500.0,0.00044108,30]
[357406595,1744048249941,-500.0,0.00044108,30]
[357406597,1744048249950,-500.0,0.00044108,30]
[357406599,1744048249959,-500.0,0.00044108,30]
[357406600,1744048249968,-500.0,0.00044108,30]
[357406601,1744048249977,-518.87,0.00044108,30]
[357406602,1744048249986,-791.12,0.00044108,30]
[357406603,1744048249995,-500.0,0.00044108,30]
[357406604,1744048250005,-500.0,0.00044108,30]
[357406605,1744048250014,-500.0,0.00044108,30]
[357406606,1744048250023,-500.0,0.00044108,30]
[357406607,1744048250031,-500.0,0.00044108,30]
[357406608,1744048250041,-500.0,0.00044108,30]
[357406609,1744048250051,-679.97,0.00044108,30]
[357406610,1744048250061,-614.45,0.00044108,30]
[357406611,1744048250070,-500.0,0.00044108,30]
[357406612,1744048250079,-500.0,0.00044108,30]
[357406613,1744048250088,-259.17424389,0.00044108,30]
[357406614,1744048250097,-567.3,0.00044108,30]
[357406615,1744048250106,-500.0,0.00044108,30]
[357406617,1744048250116,-500.0,0.00044108,30]
[357406619,1744048250125,-1000.0,0.00044108,2]
[357406621,1744048250135,-500.0,0.00044108,30]
[357406623,1744048250145,-919.65,0.00044108,30]
[357406625,1744048250158,-500.0,0.00044108,30]
[357406627,1744048250167,-166.49737765,0.00044108,30]
[357406629,1744048250177,-500.0,0.00044108,30]
[357406631,1744048250187,-500.0,0.00044108,30]
[357406633,1744048250196,-478.27254799,0.00044108,30]
[357406635,1744048250205,-818.1,0.00044108,30]
[357406637,1744048250215,-500.0,0.00044108,30]
[357406639,1744048250224,-500.0,0.00044108,30]
[357406641,1744048250233,-500.0,0.00044108,30]
[357406643,1744048250242,-512.01178802,0.00044108,30]
[357406645,1744048250251,-500.0,0.00044108,30]
[357406647,1744048250260,-500.0,0.00044108,30]
[357406649,1744048250270,-857.59,0.00044108,30]
[357406651,1744048250279,-153.09115493,0.00044108,30]
[357406653,1744048250288,-500.0,0.00044108,30]
[357406655,1744048250297,-1099.81560119,0.00044108,30]
[357406657,1744048250309,-578.04,0.00044108,30]
[357406659,1744048250318,-500.0,0.00044108,30]
[357406661,1744048250327,-521.29784596,0.00044108,30]
[357406663,1744048250336,-500.0,0.00044108,30]
[357406665,1744048250345,-500.0,0.00044108,30]
[357406667,1744048250354,-500.0,0.00044108,30]
[357406669,1744048250363,-545.43,0.00044108,30]
[357406671,1744048250372,-500.0,0.00044108,30]
[357406673,1744048250381,-500.0,0.00044108,30]
[357406675,1744048250390,-530.52059946,0.00044108,30]
[357406677,1744048250399,-500.0,0.00044108,30]
[357406678,1744048250410,-624.42,0.00044108,30]
[357406680,1744048250419,-327.26896503,0.00044108,30]
[357406682,1744048250428,-500.0,0.00044108,30]
[357406684,1744048250438,-503.97757196,0.00044108,30]
[357406687,1744048250448,-508.19789359,0.00044108,30]
[357406689,1744048250458,-300.0,0.00044108,30]
[357406691,1744048250468,-862.81,0.00044108,30]
[357406692,1744048250478,-1000.0,0.00044108,2]
[357406694,1744048250488,-1000.0,0.00044108,2]
[357406696,1744048250497,-1000.0,0.00044108,2]
[357406698,1744048250507,-500.0,0.00044108,30]
[357406700,1744048250516,-500.0,0.00044108,30]
[357406702,1744048250525,-500.0,0.00044108,30]
[357406704,1744048250535,-500.0,0.00044108,30]
[357406706,1744048250544,-500.0,0.00044108,30]
[357406708,1744048250556,-523.11505242,0.00044108,30]
[357406710,1744048250566,-500.0,0.00044108,30]
[357406712,1744048250575,-536.43,0.00044108,30]
[357406714,1744048250584,-500.0,0.00044108,30]
[357406716,1744048250593,-500.0,0.00044108,30]
[357406718,1744048250603,-500.0,0.00044108,30]
[357406720,1744048250613,-500.0,0.00044108,30]
[357406722,1744048250622,-549.11890652,0.00044108,30]
[357406724,1744048250631,-847.23,0.00044108,30]
[357406726,1744048250640,-500.0,0.00044108,30]
[357406728,1744048250649,-500.0,0.00044108,30]
[357406730,1744048250659,-500.0,0.00044108,30]
[357406732,1744048250668,-214.365637,0.00044108,14]
[357406734,1744048250678,-214.365637,0.00044108,14]
[357406736,1744048250687,-151.0,0.00044108,14]
[357406738,1744048250701,-2496.67,0.00044108,30]
[357406740,1744048250710,-2496.67,0.00044108,30]
[357406742,1744048250720,-151.0,0.00044108,14]
[357406744,1744048250729,-500.0,0.00044108,30]
[357406746,1744048250739,-151.0,0.00044108,14]
[357406748,1744048250748,-500.0,0.00044108,30]
[357406750,1744048250757,-1000.0,0.00044108,2]
[357406752,1744048250767,-151.0,0.00044108,14]
[357406754,1744048250777,-166.400345,0.00044108,14]
[357406756,1744048250786,-166.400345,0.00044108,14]
[357406758,1744048250795,-151.0,0.00044108,14]
[357406760,1744048250806,-152.048681,0.00044109,14]
[357406762,1744048250815,-152.766476,0.00044109,14]
[357406764,1744048250824,-177.031072,0.00044109,14]
[357406766,1744048250834,-177.031072,0.00044109,14]
[357406768,1744048250843,-500.0,0.00044109,30]
[357406770,1744048250852,-500.0,0.00044109,30]
[357406772,1744048250861,-500.0,0.00044109,120]
[357406774,1744048250871,-500.0,0.00044109,30]
[357406776,1744048250880,-500.0,0.00044109,30]
[357406778,1744048250889,-645.9,0.00044109,30]
[357406780,1744048250898,-615.49,0.00044109,30]
[357406782,1744048250907,-500.0,0.00044109,30]
[357406784,1744048250916,-500.0,0.00044109,30]
[357406786,1744048250925,-1034.98,0.00044109,30]
[357406788,1744048250934,-500.0,0.00044109,30]
[357406790,1744048250943,-349.87247511,0.00044109,30]
[357406792,1744048250952,-500.0,0.00044109,30]
[357406794,1744048250961,-500.0,0.00044109,30]
[357406796,1744048250971,-500.0,0.00044109,30]
[357406798,1744048250980,-532.81,0.00044109,5]
[357406800,1744048250989,-500.0,0.00044109,30]
[357406802,1744048250999,-319.70333215,0.00044109,30]
[357406804,1744048251008,-518.63,0.00044109,30]
[357406806,1744048251018,-500.0,0.00044109,30]
[357406808,1744048251027,-661.0,0.00044109,30]
[357406810,1744048251037,-500.0,0.00044109,30]
[357406812,1744048251047,-500.0,0.00044109,30]
[357406814,1744048251057,-500.0,0.00044109,30]
[357406816,1744048251067,-500.0,0.00044109,30]
[357406818,1744048251076,-500.0,0.00044109,30]
[357406820,1744048251085,-500.0,0.00044109,30]
[357406822,1744048251094,-500.0,0.00044109,30]
[357406824,1744048251103,-500.0,0.00044109,30]
[357406826,1744048251112,-500.0,0.00044109,30]
[357406828,1744048251122,-528.4005013,0.00044109,30]
[357406830,1744048251130,-500.0,0.00044109,30]
[357406832,1744048251139,-500.0,0.00044109,30]
[357406834,1744048251148,-500.0,0.00044109,30]
[357406836,1744048251158,-500.0,0.00044109,30]
[357406837,1744048251167,-500.0,0.00044109,30]
[357406839,1744048251176,-510.23,0.00044109,30]
[357406841,1744048251185,-500.0,0.00044109,30]
[357406843,1744048251193,-500.0,0.00044109,30]
[357406845,1744048251202,-500.0,0.00044109,30]
[357406847,1744048251211,-500.0,0.00044109,30]
[357406849,1744048251220,-500.0,0.00044109,30]
[357406851,1744048251229,-500.0,0.00044109,30]
[357406853,1744048251238,-500.0,0.00044109,30]
[357406855,1744048251247,-500.0,0.00044109,30]
[357406857,1744048251256,-500.0,0.00044109,30]
[357406859,1744048251265,-500.0,0.00044109,30]
[357406861,1744048251274,-500.0,0.00044109,30]
[357406862,1744048251283,-500.0,0.00044109,30]
[357406864,1744048251293,-500.0,0.00044109,30]
[357406866,1744048251303,-500.0,0.00044109,30]
[357406868,1744048251312,-500.0,0.00044109,30]
[357406870,1744048251322,-500.0,0.00044109,30]
[357406872,1744048251331,-500.0,0.00044109,30]
[357406874,1744048251340,-500.0,0.00044109,30]
[357406876,1744048251350,-500.0,0.00044109,30]
[357406878,1744048251359,-277.58160263,0.00044109,30]
[357406880,1744048251368,-500.0,0.00044109,30]
[357406883,1744048251381,-500.0,0.00044109,30]
[357406885,1744048251391,-500.0,0.00044109,30]
[357406886,1744048251400,-500.0,0.00044109,30]
[357406889,1744048251410,-805.1,0.00044109,30]
[357406891,1744048251420,-500.0,0.00044109,30]
[357406893,1744048251429,-500.0,0.00044109,30]
[357406895,1744048251439,-500.0,0.00044109,30]
[357406897,1744048251448,-500.0,0.00044109,30]
[357406899,1744048251457,-500.0,0.00044109,30]
[357406901,1744048251467,-500.0,0.00044109,30]
[357406903,1744048251476,-569.16213637,0.00044109,30]
[357406905,1744048251486,-500.0,0.00044109,30]
[357406907,1744048251495,-500.0,0.00044109,30]
[357406909,1744048251504,-500.0,0.00044109,30]
[357406911,1744048251513,-500.0,0.00044109,30]
[357406913,1744048251524,-500.0,0.00044109,30]
[357406915,1744048251533,-500.0,0.00044109,30]
[357406917,1744048251542,-500.0,0.00044109,30]
[357406919,1744048251553,-500.0,0.00044109,30]
[357406921,1744048251563,-500.0,0.00044109,30]
[357406923,1744048251573,-500.0,0.00044109,30]
[357406925,1744048251582,-547.39,0.00044109,30]
[357406927,1744048251593,-500.0,0.00044109,30]
[357406929,1744048251602,-500.0,0.00044109,30]
[357406931,1744048251612,-500.0,0.00044109,30]
[357406933,1744048251622,-1840.82,0.00044109,30]
[357406935,1744048251632,-500.0,0.00044109,30]
[357406937,1744048251643,-500.0,0.00044109,30]
[357406939,1744048251652,-500.0,0.00044109,30]
[357406941,1744048251663,-500.0,0.00044109,30]
[357406943,1744048251672,-500.0,0.00044109,30]
[357406945,1744048251682,-500.0,0.00044109,30]
[357406947,1744048251692,-500.0,0.00044109,30]
[357406949,1744048251704,-500.0,0.00044109,30]
[357406951,1744048251714,-601.32,0.00044109,30]
[357406953,1744048251724,-500.0,0.00044109,30]
[357406955,1744048251734,-500.0,0.00044109,30]
[357406957,1744048251744,-500.0,0.00044109,30]
[357406959,1744048251753,-500.0,0.00044109,30]
[357406961,1744048251763,-1162.16,0.00044109,30]
[357406963,1744048251772,-498.567868,0.00044109,30]
[357406965,1744048251785,-500.0,0.00044109,30]
[357406967,1744048251795,-500.0,0.00044109,30]
[357406969,1744048251807,-533.7943806,0.00044109,30]
[357406971,1744048251817,-500.0,0.00044109,30]
[357406973,1744048251827,-500.0,0.00044109,30]
[357406975,1744048251837,-500.0,0.00044109,30]
[357406977,1744048251847,-1991.71,0.00044109,30]
[357406979,1744048251857,-500.0,0.00044109,30]
[357406981,1744048251866,-500.0,0.00044109,30]
[357406983,1744048251876,-500.0,0.00044109,30]
[357406985,1744048251886,-500.0,0.00044109,30]
[357406987,1744048251895,-1910.31,0.00044109,30]
[357406989,1744048251905,-500.0,0.00044109,30]
[357406991,1744048251915,-500.0,0.00044109,30]
[357406994,1744048251924,-500.03,0.00044109,30]
[357406995,1744048251934,-562.27,0.00044109,30]
[357406998,1744048251943,-500.0,0.00044109,30]
[357407000,1744048251953,-1000.0,0.00044109,30]
[357407002,1744048251962,-500.0,0.00044109,30]
[357407004,1744048251971,-946.74,0.00044109,30]
[357407006,1744048251980,-370.60629561,0.00044109,30]
[357407008,1744048251990,-500.0,0.00044109,30]
[357407010,1744048251999,-500.0,0.00044109,30]
[357407012,1744048252009,-500.0,0.00044109,30]
[357407014,1744048252018,-512.27244718,0.00044109,30]
[357407016,1744048252027,-500.0,0.00044109,30]
[357407018,1744048252037,-500.0,0.00044109,30]
[357407020,1744048252047,-500.0,0.00044109,30]
[357407022,1744048252057,-500.0,0.00044109,30]
[357407024,1744048252067,-695.77,0.00044109,30]
[357407025,1744048252076,-500.0,0.00044109,30]
[357407028,1744048252086,-500.0,0.00044109,30]
[357407030,1744048252095,-542.63,0.00044109,30]
[357407032,1744048252105,-500.0,0.00044109,30]
[357407034,1744048252115,-500.0,0.00044109,30]
[357407036,1744048252125,-500.0,0.00044109,30]
[357407038,1744048252135,-500.0,0.00044109,30]
[357407040,1744048252144,-500.0,0.00044109,30]
[357407042,1744048252155,-500.0,0.00044109,30]
[357407044,1744048252164,-500.0,0.00044109,30]
[357407046,1744048252174,-500.0,0.00044109,30]
[357407048,1744048252183,-742.0,0.00044109,30]
[357407067,1744048252362,-500.0,0.00044109,30]
[357407070,1744048252383,-500.0,0.00044109,30]
[357407072,1744048252392,-500.0,0.00044109,30]
[357407073,1744048252402,-683.77,0.00044109,30]
[357407074,1744048252411,-500.0,0.00044109,30]
[357407075,1744048252420,-500.0,0.00044109,30]
[357407076,1744048252429,-655.93,0.00044109,30]
[357407077,1744048252438,-500.0,0.00044109,30]
[357407078,1744048252447,-500.0,0.00044109,30]
[357407079,1744048252457,-500.0,0.00044109,30]
[357407080,1744048252467,-500.0,0.00044109,30]
[357407081,1744048252476,-500.0,0.00044109,30]
[357407082,1744048252485,-500.0,0.00044109,30]
[357407083,1744048252496,-500.0,0.00044109,30]
[357407084,1744048252505,-807.01,0.00044109,30]
[357407085,1744048252515,-500.0,0.00044109,30]
[357407086,1744048252524,-500.0,0.00044109,30]
[357407087,1744048252533,-500.0,0.00044109,30]
[357407088,1744048252543,-500.0,0.00044109,30]
[357407089,1744048252554,-571.89416024,0.00044109,30]
[357407090,1744048252564,-500.0,0.00044109,30]
[357407091,1744048252573,-500.0,0.00044109,30]
[357407092,1744048252583,-151.0,0.00044109,14]
[357407093,1744048252592,-1164.89,0.00044109,30]
[357407094,1744048252601,-151.0,0.00044109,14]
[357407095,1744048252611,-500.0,0.00044109,30]
[357407096,1744048252620,-500.0,0.00044109,30]
[357407097,1744048252630,-688.96,0.00044109,30]
[357407098,1744048252640,-500.0,0.00044109,30]
[357407099,1744048252650,-528.2,0.00044109,30]
[357407100,1744048252659,-500.0,0.00044109,30]
[357407101,1744048252669,-541.23,0.00044109,30]
[357407102,1744048252678,-501.13526917,0.00044109,30]
[357407103,1744048252687,-500.0,0.00044109,30]
[357407104,1744048252697,-800.11,0.00044109,30]
[357407105,1744048252710,-500.0,0.00044109,30]
[357407106,1744048252719,-500.0,0.00044109,30]
[357407107,1744048252729,-946.16,0.00044109,30]